bitfinex-derivatives/quotes_ETHF0:USTF0_20241004
["timestamp","ask_amount","ask_price","bid_price","bid_amount"]
[1728004643666,3.6017,2350.2,2349.8,3.75557]
[1728004643974,0.88059436,2350.1,2349.8,3.75557]
[1728004644463,0.88059436,2350.1,2349.8,3.33]
[1728004644760,0.88059436,2350.1,2349.8,3.75557]
[1728004644966,0.3999,2350.0,2349.8,3.33]
[1728004645170,0.4245,2349.9,2349.8,3.33]
[1728004645462,0.4245,2349.9,2349.8,3.75558]
[1728004645766,1.30509436,2349.9,2349.7,0.4176]
[1728004645969,1.30509436,2349.9,2349.7,0.8432]
[1728004646766,1.30509436,2349.9,2349.6,3.7208]
[1728004646767,1.30509436,2349.9,2349.6,4.14642]
[1728004646965,1.30509436,2349.9,2349.6,3.75562]
[1728004646966,4.51289436,2349.9,2349.6,3.75562]
[1728004647159,4.51289436,2349.9,2349.7,0.42559]
[1728004647365,0.88059436,2349.8,2349.6,3.75561]
[1728004648062,0.88059436,2349.8,2349.7,0.4256]
[1728004648265,0.88059436,2349.8,2349.6,3.33]
[1728004648568,0.88059436,2349.8,2349.6,3.75562]
[1728004649067,0.88059436,2349.8,2349.6,3.33]
[1728004649469,3.6323,2349.9,2349.6,3.33]
[1728004649665,3.6323,2349.9,2349.6,3.7556]
[1728004650063,3.6323,2349.9,2349.6,3.33]
[1728004650672,3.6323,2349.9,2349.6,3.75562]
[1728004655567,3.6323,2349.9,2349.6,3.33]
[1728004655769,1.593,2349.8,2349.4,0.3888]
[1728004656076,2.43529,2349.8,2349.4,0.3888]
[1728004656769,0.88021649,2349.7,2349.4,0.3888]
[1728004656969,0.88021649,2349.7,2349.4,0.81445]
[1728004657275,0.4053,2349.6,2349.2,6.96349]
[1728004657575,0.4294,2349.5,2349.2,6.96349]
[1728004658180,0.4294,2349.5,2349.3,0.42567]
[1728004659069,0.4294,2349.5,2349.2,3.75569]
[1728004660181,0.4294,2349.5,2349.3,0.42567]
[1728004662180,0.4294,2349.5,2349.2,3.33]
[1728004662181,0.4294,2349.5,2349.4,0.42566]
[1728004663174,0.4294,2349.5,2349.2,3.7492]
[1728004663370,0.4294,2349.5,2349.3,0.42567]
[1728004664975,3.6131,2349.6,2349.5,0.42564]
[1728004665188,3.27985956,2349.6,2349.4,3.75565]
[1728004665381,3.2078,2349.6,2349.5,0.4049]
[1728004665575,3.27986372,2349.6,2349.5,0.8185]
[1728004665781,7.53586372,2349.6,2349.5,0.4136]
[1728004666278,7.53586372,2349.6,2349.3,0.4049]
[1728004666579,3.2078,2349.6,2349.3,0.8319]
[1728004666779,0.0720665,2349.5,2349.3,0.427]
[1728004666984,0.4977065,2349.5,2349.0,4.16062]
[1728004667181,0.4977065,2349.5,2349.0,4.58762]
[1728004667182,0.8962665,2349.4,2349.0,4.58762]
[1728004667378,0.8242,2349.4,2349.0,4.58762]
[1728004667782,0.8242,2349.4,2349.1,0.42571]
[1728004669083,0.8242,2349.4,2349.0,4.1619]
[1728004669279,0.8242,2349.4,2349.0,4.58762]
[1728004669587,0.8242,2349.4,2349.1,0.42571]
[1728004671487,0.8242,2349.4,2349.0,4.1619]
[1728004671687,0.8242,2349.4,2349.2,0.42568]
[1728004672081,0.4088,2349.4,2349.2,0.42568]
[1728004672877,0.4088,2349.4,2349.0,4.1619]
[1728004672878,0.4088,2349.4,2349.1,0.4257]
[1728004675994,3.2078,2349.5,2349.2,3.7277]
[1728004675995,4.7248,2349.5,2349.2,3.7277]
[1728004676184,4.7248,2349.5,2349.3,0.42566]
[1728004676382,4.7248,2349.5,2349.4,0.4115]
[1728004676585,4.7248,2349.5,2349.4,0.8126]
[1728004678195,3.2078,2349.5,2349.4,0.8126]
[1728004679891,3.63344,2349.5,2349.1,0.4257]
[1728004680093,0.3939,2349.4,2349.2,0.4293]
[1728004680895,0.3939,2349.4,2349.3,0.42568]
[1728004681095,3.2078,2349.8,2349.3,4.6495]
[1728004681399,3.2078,2349.8,2349.7,3.7556]
[1728004682194,3.2078,2349.8,2349.7,3.33]
[1728004682399,3.2078,2349.8,2349.7,0.4256]
[1728004683297,3.2078,2349.8,2349.7,0.8183]
[1728004684088,3.2078,2349.8,2349.7,0.3927]
[1728004684702,3.2078,2349.8,2349.7,0.8183]
[1728004685287,3.2078,2349.8,2349.7,0.3927]
[1728004686600,3.2078,2350.3,2349.7,17.1865]
[1728004686795,3.2078,2350.3,2350.2,0.42551]
[1728004687101,1.517,2350.5,2350.4,0.42548]
[1728004687305,1.517,2350.5,2350.3,1.66598]
[1728004687605,1.517,2350.5,2350.1,3.33]
[1728004687808,4.7248,2350.5,2350.1,0.4206]
[1728004688001,0.42548,2350.4,2350.1,0.4206]
[1728004688311,0.42548,2350.4,2349.9,0.4195]
[1728004688312,0.42553,2350.2,2349.9,0.4195]
[1728004688797,0.3909,2350.1,2349.8,0.4206]
[1728004689999,0.81643,2350.1,2349.8,0.4206]
[1728004690197,0.3909,2350.1,2349.8,0.4206]
[1728004691193,3.5987,2350.1,2349.8,0.4206]
[1728004693400,3.2078,2350.1,2349.8,3.7506]
[1728004693597,0.4104,2350.3,2350.0,3.33]
[1728004693598,0.8243,2350.3,2350.0,3.33]
[1728004693799,0.4104,2350.3,2350.2,3.75551]
[1728004694100,1.29091725,2350.3,2350.2,3.75551]
[1728004694302,1.29091725,2350.3,2350.2,4.14631]
[1728004694503,1.29091725,2350.3,2350.2,3.7208]
[1728004694999,1.29091725,2350.3,2350.2,0.3908]
[1728004695402,1.36295295,2350.3,2350.2,0.3908]
[1728004695999,1.36295295,2350.3,2350.2,0.81631]
[1728004696208,3.2078,2350.6,2350.2,13.976]
[1728004696506,2.3236,2351.0,2350.6,0.42543]
[1728004696707,0.95177493,2350.9,2350.7,0.4211]
[1728004696901,0.0720209,2350.8,2350.7,0.4211]
[1728004697098,0.87975403,2350.9,2350.7,0.4211]
[1728004697307,14.27909,2351.5,2350.7,0.4211]
[1728004697308,1.516,2351.2,2350.8,3.33]
[1728004697498,0.07200994,2351.1,2350.8,3.75539]
[1728004697701,0.95116329,2351.1,2350.8,3.75539]
[1728004698005,0.07200994,2351.0,2350.8,3.75539]
[1728004698203,4.7238,2351.2,2350.9,0.42539]
[1728004698397,0.07200845,2351.1,2350.9,0.42539]
[1728004698703,0.07200845,2351.1,2350.8,3.75539]
[1728004698903,0.07200845,2351.1,2350.9,0.42538]
[1728004699611,3.2078,2351.2,2351.0,3.33]
[1728004699811,4.7198,2351.7,2351.2,0.42532]
[1728004700106,0.94998886,2351.6,2351.2,0.42532]
[1728004700302,5.5358,2351.7,2351.5,3.75528]
[1728004700303,0.4059,2351.7,2351.5,3.75528]
[1728004700605,0.4059,2351.7,2351.5,3.33]
[1728004700811,0.4059,2351.7,2351.4,3.33]
[1728004701307,0.4059,2351.7,2351.4,3.75529]
[1728004701510,0.4059,2351.7,2351.4,3.33]
[1728004702210,0.83114,2351.7,2351.3,0.3918]
[1728004702511,0.4243,2351.6,2351.3,0.3918]
[1728004703506,0.4243,2351.6,2351.2,6.5378]
[1728004703709,0.4243,2351.6,2351.2,6.96312]
[1728004704610,0.4243,2351.6,2351.2,6.5378]
[1728004704803,0.4243,2351.6,2351.3,0.4194]
[1728004705501,0.4059,2351.7,2351.3,0.4194]
[1728004705716,0.4059,2351.7,2351.4,3.75528]
[1728004706101,0.4059,2351.7,2351.4,3.33]
[1728004706813,0.4059,2351.7,2351.4,3.75529]
[1728004707518,0.4059,2351.7,2351.4,3.33]
[1728004708602,0.4059,2351.7,2351.4,3.75529]
[1728004708812,0.4059,2351.7,2351.3,0.4194]
[1728004709113,0.83114,2351.7,2351.3,0.4194]
[1728004709610,0.4059,2351.7,2351.3,0.8447]
[1728004710115,0.4059,2351.7,2351.3,0.4194]
[1728004710512,0.4059,2351.7,2351.4,0.42529]
[1728004711411,0.4059,2351.7,2351.5,0.42527]
[1728004711813,0.4059,2351.7,2351.4,0.42529]
[1728004714321,0.4059,2351.7,2351.5,0.42528]
[1728004714523,0.4059,2351.7,2351.5,0.42527]
[1728004714818,0.4059,2351.7,2351.5,0.82697]
[1728004715817,0.4059,2351.7,2351.5,0.4017]
[1728004716422,0.4059,2351.7,2351.5,0.82698]
[1728004716614,0.4059,2351.7,2351.4,3.33]
[1728004716817,0.4059,2351.7,2351.3,0.4194]
[1728004717020,0.4059,2351.7,2351.3,0.8447]
[1728004717822,0.4059,2351.7,2351.3,0.4194]
[1728004718019,0.4059,2351.7,2351.5,0.42527]
[1728004718417,0.4059,2351.7,2351.5,0.84337]
[1728004719222,0.4059,2351.7,2351.6,0.42526]
[1728004719422,1.511,2352.2,2351.8,0.42522]
[1728004719720,0.3928,2352.1,2351.9,0.4035]
[1728004719919,0.3928,2352.1,2351.7,0.42523]
[1728004720325,0.3928,2352.1,2351.8,3.33]
[1728004720532,0.3928,2352.1,2351.9,0.4252]
[1728004721535,0.3928,2352.1,2351.8,3.75521]
[1728004721825,0.3928,2352.1,2351.7,3.33]
[1728004722027,0.3928,2352.1,2351.8,0.42522]
[1728004722431,0.3928,2352.1,2351.9,0.42519]
[1728004722628,0.3928,2352.1,2351.8,0.4074]
[1728004722831,0.3928,2352.1,2351.7,3.33]
[1728004723026,0.3928,2352.1,2351.9,0.4252]
[1728004724135,0.3928,2352.1,2351.8,0.42521]
[1728004724734,0.3928,2352.1,2351.9,0.4252]
[1728004725133,0.3928,2352.1,2351.8,0.42521]
[1728004725340,0.3928,2352.1,2351.7,3.75523]
[1728004725638,0.3928,2352.1,2351.8,0.42522]
[1728004726233,0.3928,2352.1,2351.7,3.33]
[1728004726234,3.63299,2352.0,2351.6,4.03655]
[1728004726435,0.07198457,2351.9,2351.6,0.4035]
[1728004726636,0.49888457,2351.9,2351.6,0.4035]
[1728004726837,0.4269,2351.9,2351.8,0.42522]
[1728004728735,0.4269,2351.9,2351.6,0.4035]
[1728004728938,0.4269,2351.9,2351.3,3.33]
[1728004729131,0.403,2351.8,2351.5,0.42527]
[1728004729340,0.403,2351.8,2351.6,0.42526]
[1728004729341,0.425,2351.7,2351.6,0.42526]
[1728004729744,0.425,2351.7,2351.5,3.33]
[1728004729933,0.425,2351.7,2351.5,3.75526]
[1728004730240,4.05805,2351.7,2351.4,0.4165]
[1728004730441,3.6328,2351.7,2351.4,0.4165]
[1728004730648,3.6328,2351.7,2351.4,0.84179]
[1728004730838,3.6328,2351.7,2351.5,0.42527]
[1728004731241,3.6328,2351.7,2351.4,0.4165]
[1728004731746,3.6328,2351.7,2351.5,0.42527]
[1728004732340,3.6328,2351.7,2351.6,0.42526]
[1728004732545,0.4269,2351.9,2351.7,0.42522]
[1728004732740,0.4269,2351.9,2351.8,0.85442]
[1728004733343,0.4269,2351.9,2351.8,0.4292]
[1728004734138,0.4269,2351.9,2351.6,0.82615]
[1728004734448,0.4269,2351.9,2351.6,0.4009]
[1728004734642,0.4269,2351.9,2351.6,0.82615]
[1728004735239,0.4269,2351.9,2351.6,0.4009]
[1728004735443,1.473,2352.0,2351.8,0.42522]
[1728004735647,1.473,2352.0,2351.9,0.4231]
[1728004736647,1.8883,2352.0,2351.9,0.4231]
[1728004737241,6.1403,2352.0,2351.6,0.4009]
[1728004737449,1.8883,2352.0,2351.8,0.42522]
[1728004740143,1.8883,2352.0,2351.6,4.54425]
[1728004740354,0.4019,2351.9,2351.6,4.54425]
[1728004740752,0.4019,2351.9,2351.4,3.33]
[1728004741055,3.6097,2351.9,2351.4,3.33]
[1728004741245,3.6097,2351.9,2351.7,0.42524]
[1728004741656,3.6097,2351.9,2351.6,3.33]
[1728004741860,3.6097,2351.9,2351.6,3.75525]
[1728004742059,3.6097,2351.9,2351.6,3.33]
[1728004742255,0.42523,2351.8,2351.4,3.33]
[1728004742456,0.4143,2351.7,2351.4,3.33]
[1728004742752,0.4143,2351.7,2351.6,3.75526]
[1728004744157,0.4153,2352.0,2351.7,0.42523]
[1728004744358,0.4143,2351.9,2351.8,0.42522]
[1728004744562,0.4143,2351.9,2351.7,0.84303]
[1728004744957,0.4143,2351.9,2351.8,0.42522]
[1728004745256,1.2952216,2351.9,2351.8,3.75522]
[1728004745452,0.4143,2351.9,2351.6,3.75526]
[1728004745652,1.29524202,2351.9,2351.6,3.75526]
[1728004746252,1.29524202,2351.9,2351.7,0.42523]
[1728004746448,1.29524202,2351.9,2351.8,0.42522]
[1728004746449,0.4143,2351.9,2351.8,0.42522]
[1728004747162,1.29531135,2351.9,2351.8,3.75522]
[1728004747754,1.29531135,2351.9,2351.8,8.00722]
[1728004748260,0.88101135,2351.9,2351.8,8.00722]
[1728004748561,0.4153,2352.0,2351.9,0.4252]
[1728004748759,1.29618867,2352.0,2351.9,0.4252]
[1728004749152,0.88088867,2352.0,2351.9,0.4252]
[1728004749555,0.4277,2352.1,2351.8,6.5378]
[1728004749762,0.4277,2352.1,2352.0,0.42519]
[1728004750151,0.4277,2352.1,2352.0,3.75519]
[1728004750354,0.88089884,2352.2,2352.1,0.42517]
[1728004750662,6.07235274,2352.6,2352.1,7.8693]
[1728004750663,0.88089884,2352.5,2352.1,7.8693]
[1728004750861,6.4486,2352.7,2352.6,0.42508]
[1728004750862,0.4277,2352.7,2352.6,0.42508]
[1728004751055,0.4277,2352.7,2352.6,3.33]
[1728004751255,1.30831269,2352.7,2352.6,3.33]
[1728004751855,1.30831269,2352.7,2352.6,3.75508]
[1728004752063,1.30831269,2352.7,2352.6,3.33]
[1728004752457,0.4115,2353.0,2352.7,0.42504]
[1728004752656,0.3953,2352.9,2352.7,0.42504]
[1728004752881,1.27521937,2352.9,2352.7,0.42504]
[1728004753464,1.27521937,2352.9,2352.6,3.33]
[1728004753763,1.27521937,2352.9,2352.8,0.42504]
[1728004754074,0.3953,2352.9,2352.8,3.75504]
[1728004754265,1.27521937,2352.9,2352.8,3.75504]
[1728004754562,0.391,2353.4,2352.8,3.75504]
[1728004754563,0.391,2353.4,2353.0,0.42501]
[1728004754768,0.3959,2353.3,2353.1,3.75498]
[1728004755062,0.3959,2353.3,2353.1,3.33]
[1728004755262,0.3959,2353.3,2353.1,3.75498]
[1728004755466,0.3959,2353.3,2353.1,3.33]
[1728004756065,0.07193539,2353.2,2353.1,3.33]
[1728004756367,0.0719365,2353.2,2353.1,3.33]
[1728004756566,0.0719365,2353.2,2353.1,3.75499]
[1728004757061,0.45932965,2353.6,2353.2,0.42496]
[1728004757262,0.07193226,2353.5,2353.4,3.33]
[1728004760366,0.07193226,2353.5,2353.4,3.75493]
[1728004760576,0.07192397,2353.5,2353.4,3.75492]
[1728004760768,0.07192397,2353.5,2353.4,3.33]
[1728004761466,0.07192397,2353.5,2353.4,3.75493]
[1728004762172,0.07192397,2353.5,2353.4,8.43073]
[1728004763073,0.3874,2353.6,2353.4,8.43073]
[1728004763271,0.3874,2353.6,2353.5,3.33]
[1728004763571,0.3874,2353.6,2353.5,3.75492]
[1728004763765,0.8349,2354.0,2353.5,3.75492]
[1728004763961,0.4014,2353.9,2353.5,3.75492]
[1728004765273,3.2078,2353.8,2353.2,0.4248]
[1728004765466,3.2078,2353.8,2353.1,3.33]
[1728004765668,3.2078,2353.8,2353.3,3.33]
[1728004765863,3.63267,2353.8,2353.3,3.33]
[1728004766376,0.07193069,2353.7,2353.3,3.33]
[1728004766575,3.63267,2353.8,2353.3,3.75495]
[1728004766775,0.394,2353.6,2353.3,3.75495]
[1728004767481,1.9454,2353.9,2353.5,3.75491]
[1728004767779,2.3394,2353.9,2353.5,3.75491]
[1728004767977,0.4014,2353.9,2353.8,0.42486]
[1728004768184,3.2078,2354.5,2353.9,0.42483]
[1728004768477,0.4149,2354.1,2354.0,3.33]
[1728004769670,0.4149,2354.1,2353.8,3.33]
[1728004769875,1.709077,2354.1,2353.8,3.33]
[1728004770073,0.873777,2354.0,2353.8,3.33]
[1728004772275,0.8353,2354.1,2353.8,3.33]
[1728004773381,0.8353,2354.1,2353.6,3.33]
[1728004773578,0.87297616,2354.0,2353.7,0.42488]
[1728004773781,0.8353,2354.1,2353.8,3.33]
[1728004774084,1.26012,2354.1,2353.8,3.33]
[1728004774491,0.87290841,2354.0,2353.6,3.33]
[1728004774780,0.87290841,2354.0,2353.6,3.75489]
[1728004774985,1.26012,2354.1,2353.7,0.42487]
[1728004775178,0.87288012,2354.0,2353.7,0.42487]
[1728004775376,0.8353,2354.1,2353.8,3.75485]
[1728004775578,0.4149,2354.1,2353.8,3.75485]
[1728004775775,1.28771194,2354.1,2353.8,4.16625]
[1728004775976,1.28771194,2354.1,2353.8,3.7414]
[1728004776176,1.71253194,2354.1,2353.8,3.33]
[1728004776476,1.27775113,2354.0,2353.8,3.33]
[1728004776879,0.4049,2354.0,2353.8,3.33]
[1728004777774,4.6529,2354.0,2353.6,3.33]
[1728004777972,3.63265,2353.9,2353.6,3.33]
[1728004778385,0.3954,2353.8,2353.6,3.33]
[1728004778584,0.4261,2353.7,2353.6,3.33]
[1728004780081,0.85099,2353.7,2353.4,3.33]
[1728004780276,0.4059,2353.6,2353.4,3.33]
[1728004780475,0.4261,2353.7,2353.6,0.4249]
[1728004780678,0.4261,2353.7,2353.6,3.7549]
[1728004780874,0.4261,2353.7,2353.6,8.0037]
[1728004781182,2.0341,2354.1,2353.6,3.33]
[1728004781486,2.461,2354.1,2353.8,0.42485]
[1728004781674,2.461,2354.1,2353.7,0.393]
[1728004781875,0.835,2354.1,2353.8,3.75486]
[1728004782082,0.835,2354.1,2353.9,0.42484]
[1728004782276,0.835,2354.1,2353.8,3.33]
[1728004782483,0.835,2354.1,2353.8,3.75485]
[1728004782683,0.835,2354.1,2353.8,3.33]
[1728004782988,0.835,2354.1,2353.9,0.42484]
[1728004783485,0.835,2354.1,2353.8,3.33]
[1728004785093,0.835,2354.1,2353.3,3.2078]
[1728004785094,0.42487,2353.8,2353.4,3.33]
[1728004785384,4.12660514,2353.7,2353.4,3.33]
[1728004785587,0.46982514,2353.6,2353.4,3.33]
[1728004785785,0.07192514,2353.5,2353.4,3.75493]
[1728004786178,0.07192514,2353.5,2353.4,3.33]
[1728004787292,0.07192514,2353.5,2353.1,4.16808]
[1728004787482,0.07192514,2353.5,2353.1,4.14278]
[1728004787786,0.07192514,2353.5,2353.1,0.3878]
[1728004787787,3.2078,2353.3,2353.1,0.3878]
[1728004787995,0.85812514,2353.2,2353.0,3.755]
[1728004788188,0.07192514,2353.1,2353.0,0.425]
[1728004788384,0.07192514,2353.1,2353.0,3.33]
[1728004788692,0.46352514,2353.1,2352.9,3.33]
[1728004788888,0.07192514,2353.0,2352.9,3.33]
[1728004789284,0.07194597,2353.0,2352.8,0.4289]
[1728004789884,0.07195035,2352.9,2352.8,0.4289]
[1728004790091,0.3916,2353.1,2352.8,3.7589]
[1728004790284,0.07194559,2353.0,2352.8,3.7589]
[1728004790480,0.07194559,2353.0,2352.8,4.18393]
[1728004790779,0.07194559,2353.0,2352.9,0.42502]
[1728004791882,0.07194559,2353.0,2352.8,4.5604]
[1728004792082,0.94819245,2353.0,2352.8,4.1536]
[1728004792286,0.94869395,2352.9,2352.8,4.1536]
[1728004792489,0.07194559,2352.9,2352.8,4.1536]
[1728004793282,0.87674836,2353.0,2352.8,4.1536]
[1728004793593,0.3916,2353.1,2352.8,4.1536]
[1728004793594,0.87674836,2352.9,2352.8,4.1536]
[1728004794090,1.26834836,2353.1,2352.8,4.1536]
[1728004794302,0.87674836,2353.0,2352.8,4.1536]
[1728004794494,0.87674836,2352.9,2352.8,4.1536]
[1728004795190,1.26834836,2353.1,2352.8,4.1536]
[1728004795386,0.87674836,2353.0,2352.8,4.1536]
[1728004795587,0.87674836,2352.9,2352.8,4.57864]
[1728004795784,0.87674836,2352.9,2352.8,4.5702]
[1728004795990,1.26834836,2353.1,2352.8,4.5702]
[1728004796190,1.26834836,2353.1,2352.9,0.42502]
[1728004796499,1.26834836,2353.1,2352.8,4.5702]
[1728004796985,1.26834836,2353.1,2352.9,0.42502]
[1728004798687,1.26834836,2353.1,2352.8,4.5702]
[1728004799191,0.3916,2353.1,2353.0,3.33]
[1728004799389,3.2078,2353.2,2353.0,3.33]
[1728004800586,0.42507,2352.7,2352.2,0.214]
[1728004800889,8.64208,2353.1,2352.3,0.4119]
[1728004800890,3.2078,2352.6,2352.3,0.4119]
[1728004801084,3.6129,2352.6,2352.3,3.7419]
[1728004801383,3.6129,2352.6,2352.3,4.16702]
[1728004801587,3.6129,2352.6,2352.3,3.7419]
[1728004801792,3.6129,2352.6,2352.3,4.16703]
[1728004802382,3.6129,2352.6,2352.3,3.7419]
[1728004802585,3.6242,2352.9,2352.5,3.7551]
[1728004802782,3.6242,2352.9,2352.8,3.33]
[1728004802998,3.2078,2352.9,2352.8,3.33]
[1728004803194,2.1086,2353.1,2352.8,3.33]
[1728004803389,2.1086,2353.1,2352.8,4.1615]
[1728004803587,0.4066,2353.1,2352.8,4.58654]
[1728004804190,0.4066,2353.1,2352.8,4.1615]
[1728004804499,0.4066,2353.1,2352.8,4.58653]
[1728004804695,0.4066,2353.1,2352.9,0.4267]
[1728004804890,0.4066,2353.1,2352.8,4.1615]
[1728004805891,0.4066,2353.1,2352.8,0.8315]
[1728004806094,3.2078,2352.9,2352.8,0.4056]
[1728004806493,3.2078,2352.9,2352.8,0.83064]
[1728004807103,4.08576477,2352.9,2352.8,0.83064]
[1728004807397,4.08576477,2352.9,2352.8,0.4056]
[1728004810096,4.08576477,2352.9,2352.6,0.4142]
[1728004810300,4.08576477,2352.9,2352.8,0.42504]
[1728004810504,4.08549571,2352.9,2352.8,0.42504]
[1728004810703,4.08549571,2352.9,2352.7,0.83265]
[1728004810897,0.87769571,2352.8,2352.7,0.4076]
[1728004811303,1.30079571,2352.8,2352.7,0.4076]
[1728004812899,1.30079571,2352.8,2352.5,0.42509]
[1728004813093,0.4152,2352.7,2352.5,0.4175]
[1728004813392,1.29289571,2352.7,2352.5,0.84259]
[1728004813699,1.29289571,2352.7,2352.6,0.42508]
[1728004813892,0.87769571,2352.7,2352.6,0.42508]
[1728004814106,0.87769571,2352.7,2352.5,0.84259]
[1728004814399,0.4152,2352.7,2352.5,0.4175]
[1728004814797,3.2078,2352.6,2352.5,0.4175]
[1728004815101,3.2078,2352.6,2352.4,0.8244]
[1728004815398,3.2078,2352.6,2351.9,3.33]
[1728004815697,3.2078,2352.3,2352.2,0.82395]
[1728004816902,7.459,2352.3,2351.8,3.2078]
[1728004817101,1.628,2352.4,2351.6,0.3988]
[1728004817102,3.2078,2352.0,2351.6,0.3988]
[1728004817300,3.2078,2352.0,2351.6,0.82405]
[1728004817801,3.2078,2351.7,2351.6,0.3988]
[1728004818098,3.2078,2351.7,2351.6,0.82406]
[1728004818305,0.848,2352.2,2351.7,0.42522]
[1728004818306,3.2078,2352.0,2351.7,0.42522]
[1728004818500,3.2078,2352.0,2351.6,0.3988]
[1728004818501,3.2078,2352.0,2351.8,0.42522]
[1728004818802,3.2078,2352.0,2351.6,0.3988]
[1728004819000,3.2078,2352.0,2351.7,0.42523]
[1728004819510,3.2078,2352.0,2351.7,0.42524]
[1728004819708,3.2078,2352.0,2351.6,0.3988]
[1728004819709,0.848,2352.2,2351.8,3.33]
[1728004820007,0.4209,2352.2,2352.1,0.42517]
[1728004820205,0.49287569,2352.2,2352.1,0.42517]
[1728004820906,0.4209,2352.2,2352.0,0.82528]
[1728004822508,0.42508,2352.6,2352.0,0.82528]
[1728004822509,5.675,2352.9,2352.1,7.459]
[1728004822810,0.45966393,2352.7,2352.6,0.42508]
[1728004823004,0.3877,2352.7,2352.6,0.42508]
[1728004823201,0.3877,2352.7,2352.2,0.42515]
[1728004823403,0.3877,2352.7,2352.4,0.4251]
[1728004823604,1.26448852,2352.7,2352.4,0.4251]
[1728004824010,1.26448852,2352.7,2352.5,0.4251]
[1728004824609,1.26448852,2352.7,2352.4,0.42511]
[1728004825107,1.26448852,2352.7,2352.5,0.42509]
[1728004825611,1.26448852,2352.7,2352.6,0.42508]
[1728004826506,1.26448852,2352.7,2352.4,0.42511]
[1728004826709,4.47228852,2352.7,2352.4,0.42511]
[1728004826905,3.5955,2352.7,2352.3,0.42512]
[1728004827407,3.5955,2352.7,2352.4,0.42511]
[1728004827919,0.87760112,2352.6,2352.1,0.4127]
[1728004828110,0.87760112,2352.6,2352.2,3.33]
[1728004828321,0.87760112,2352.6,2352.5,0.4251]
[1728004829435,3.5955,2352.7,2352.5,0.4251]
[1728004830135,3.5955,2352.7,2352.4,3.33]
[1728004830342,4.02057,2352.7,2352.1,0.4127]
[1728004830552,4.02057,2352.7,2352.1,0.83786]
[1728004830747,0.4029,2352.6,2352.2,0.42514]
[1728004830941,0.4029,2352.6,2352.1,0.42516]
[1728004831247,3.5955,2352.7,2352.3,0.42511]
[1728004831446,3.5955,2352.7,2352.2,3.75514]
[1728004831642,3.5955,2352.7,2352.3,0.42513]
[1728004831848,3.5955,2352.7,2352.2,3.33]
[1728004832163,3.5955,2352.7,2352.0,3.33]
[1728004832350,1.30437375,2352.6,2352.0,3.75517]
[1728004832545,3.2078,2352.4,2352.0,3.33]
[1728004832843,3.2078,2352.4,2352.2,0.42515]
[1728004833946,3.2078,2352.4,2352.1,0.42516]
[1728004835336,3.2078,2352.4,2352.0,3.75518]
[1728004835537,0.4192,2352.3,2352.1,0.42516]
[1728004836330,0.3947,2352.2,2352.1,0.42516]
[1728004836923,0.3947,2352.2,2352.1,0.83286]
[1728004837727,1.2742985,2352.2,2352.1,0.83286]
[1728004839826,0.3947,2352.2,2352.1,0.83286]
[1728004841834,0.3947,2352.2,2351.6,0.099]
[1728004841835,4.6459,2352.2,2351.6,0.099]
[1728004842038,3.63299,2352.0,2351.6,0.4219]
[1728004842233,1.3000985,2351.9,2351.6,0.4219]
[1728004842430,0.4094,2351.8,2351.6,0.4219]
[1728004842732,1.2889985,2351.8,2351.7,0.42524]
[1728004843035,1.2889985,2351.8,2351.4,0.4142]
[1728004843232,3.2078,2351.5,2351.4,0.85349]
[1728004843433,0.8795985,2351.5,2351.4,0.85349]
[1728004843634,3.2078,2351.5,2351.4,0.85349]
[1728004843840,0.8795985,2351.5,2351.4,0.85349]
[1728004844039,1.2680985,2351.7,2351.4,0.85349]
[1728004844237,3.2078,2351.5,2351.4,0.85349]
[1728004844432,4.0873985,2351.5,2351.4,0.85349]
[1728004844637,3.2078,2351.5,2351.4,0.85349]
[1728004845435,0.4094,2351.8,2351.4,0.85349]
[1728004845436,3.6172,2351.8,2351.4,8.011]
[1728004845650,3.6172,2351.8,2351.5,0.42527]
[1728004845834,0.07199202,2351.7,2351.5,0.42527]
[1728004846234,0.07199202,2351.7,2351.4,0.4282]
[1728004846534,0.07199202,2351.7,2351.4,0.85349]
[1728004846535,3.2078,2351.5,2351.4,0.85349]
[1728004846734,3.2078,2351.5,2351.4,0.4282]
[1728004846735,3.27979202,2351.5,2351.4,0.4282]
[1728004847138,3.27979202,2351.5,2351.4,0.85349]
[1728004847930,3.27979202,2351.5,2351.4,0.42529]
[1728004848132,3.27979202,2351.5,2351.2,4.16952]
[1728004848338,3.2078,2351.5,2351.2,0.83952]
[1728004848538,3.2078,2351.5,2351.3,0.4253]
[1728004849239,0.389,2351.6,2351.2,0.83952]
[1728004849434,0.07199624,2351.5,2351.2,0.83952]
[1728004849631,0.07199624,2351.5,2351.3,0.4253]
[1728004849829,0.389,2351.6,2351.3,0.4253]
[1728004850040,0.07199631,2351.5,2351.2,0.4142]
[1728004850237,0.07199631,2351.5,2351.2,0.83952]
[1728004850429,0.07199631,2351.5,2351.2,0.42532]
[1728004850629,0.07199631,2351.5,2351.4,0.42529]
[1728004850839,0.07199631,2351.7,2351.2,7.5828]
[1728004851141,0.07199631,2351.7,2351.2,3.33]
[1728004851343,0.07199631,2351.7,2351.4,0.42528]
[1728004851741,0.07199631,2351.7,2351.3,0.4253]
[1728004851933,0.4183,2351.6,2351.2,0.42533]
[1728004852138,0.07199631,2351.5,2351.2,0.42533]
[1728004852737,0.07199631,2351.5,2351.3,0.42531]